fUST/lending_fUST_20250727
["ID","MTS","AMOUNT","RATE_DAILY","PERIOD"]
[375241121,1753595465035,-1725.54,0.00024109,2]
[375241122,1753595465045,-460.0,0.00024109,2]
[375241123,1753595465055,-584.25,0.00024109,2]
[375241124,1753595465064,-798.5,0.00024109,2]
[375241125,1753595465074,-460.0,0.00024109,2]
[375241126,1753595465083,-4006.34,0.00024109,2]
[375241127,1753595465093,-783.4,0.00024109,2]
[375241128,1753595465102,-460.0,0.00024109,2]
[375241129,1753595465113,-460.0,0.00024109,2]
[375241130,1753595465124,-1583.13,0.00024109,2]
[375241131,1753595465134,-460.0,0.00024109,2]
[375241132,1753595465144,-1666.04,0.00024109,2]
[375241133,1753595465154,-1405.32,0.00024109,2]
[375241134,1753595465165,-460.0,0.00024109,2]
[375241135,1753595465175,-460.0,0.00024109,2]
[375241136,1753595465185,-1584.02,0.00024109,2]
[375241137,1753595465194,-584.73,0.00024109,2]
[375241138,1753595465204,-1748.75,0.00024109,2]
[375241139,1753595465213,-475.24,0.00024109,2]
[375241140,1753595465223,-746.26,0.00024109,2]
[375241141,1753595465234,-819.7,0.00024109,2]
[375241142,1753595465245,-1990.43,0.00024109,2]
[375241143,1753595465254,-532.53,0.00024109,2]
[375241144,1753595465264,-475.65,0.00024109,2]
[375241145,1753595465274,-1414.2,0.00024109,2]
[375241146,1753595465283,-1681.9,0.00024109,2]
[375241147,1753595465293,-439.44961088,0.00024109,2]
[375241148,1753595465304,-1788.4,0.00024109,2]
[375241149,1753595465315,-670.56,0.00024109,2]
[375241150,1753595465325,-517.79,0.00024109,2]
[375241151,1753595465337,-1567.29,0.00024109,2]
[375241152,1753595465347,-460.0,0.00024109,2]
[375241153,1753595465358,-792.06,0.00024109,2]
[375241154,1753595465368,-622.32,0.00024109,2]
[375241155,1753595465380,-598.56,0.00024109,2]
[375241156,1753595465391,-460.0,0.00024109,2]
[375241157,1753595465402,-750.85,0.00024109,2]
[375241158,1753595465412,-1639.17,0.00024109,2]
[375241159,1753595465422,-486.5,0.00024109,2]
[375241160,1753595465431,-504.15,0.00024109,2]
[375241161,1753595465440,-720.09,0.00024109,2]
[375241162,1753595465450,-800.0,0.00024115,2]
[375241163,1753595465459,-190.0,0.00024163,2]
[375241164,1753595465468,-500.0,0.00024228,2]
[375241165,1753595465477,-3935.02372882,0.00024245,10]
[375241166,1753595465487,-600.0,0.0002425,2]
[375241167,1753595465496,-232.0,0.0002425,2]
[375241168,1753595465506,-334.0,0.00024252,2]
[375241169,1753595465515,-151.0,0.00024258,6]
[375241170,1753595465524,-500.0,0.00024292,2]
[375241171,1753595465533,-500.0,0.00024329,2]
[375241172,1753595465543,-500.0,0.00024344,2]
[375241173,1753595465552,-460.0,0.00024383,2]
[375241174,1753595465562,-3978.79,0.00024383,2]
[375241175,1753595465572,-151.0,0.00024383,7]
[375241176,1753595465581,-151.0,0.00024383,7]
[375241177,1753595465593,-152.537099,0.00024383,7]
[375241178,1753595465604,-151.0,0.00024383,7]
[375241179,1753595465614,-151.0,0.00024383,7]
[375241180,1753595465623,-151.0,0.00024383,7]
[375241181,1753595465632,-151.0,0.00024383,7]
[375241182,1753595465642,-637.82,0.00024383,2]
[375241183,1753595465652,-646.88,0.00024383,2]
[375241184,1753595465662,-361.43448744,0.00024383,2]
[375241185,1753595465674,-1725.54,0.00024383,2]
[375241186,1753595465684,-547.13,0.00024383,2]
[375241187,1753595465694,-584.25,0.00024383,2]
[375241188,1753595465703,-798.5,0.00024383,2]
[375241189,1753595465712,-460.0,0.00024383,2]
[375241190,1753595465722,-4006.34,0.00024383,2]
[375241191,1753595465731,-783.4,0.00024383,2]
[375241192,1753595465740,-151.0,0.00024383,7]
[375241193,1753595465749,-460.0,0.00024383,2]
[375241194,1753595465759,-460.0,0.00024383,2]
[375241195,1753595465834,-151.0,0.00024383,7]
[375241196,1753595465844,-1583.13,0.00024383,2]
[375241197,1753595465853,-460.0,0.00024383,2]
[375241198,1753595465863,-151.0,0.00024383,7]
[375241199,1753595465873,-1666.04,0.00024383,2]
[375241200,1753595465882,-151.0,0.00024383,7]
[375241201,1753595465891,-151.0,0.00024383,7]
[375241202,1753595465901,-1405.32,0.00024383,2]
[375241203,1753595465911,-151.0,0.00024383,7]
[375241204,1753595465921,-151.0,0.00024383,7]
[375241205,1753595465930,-460.0,0.00024383,2]
[375241206,1753595465939,-460.0,0.00024383,2]
[375241207,1753595465949,-1584.02,0.00024383,2]
[375241208,1753595465958,-584.73,0.00024383,2]
[375241209,1753595465968,-1748.75,0.00024383,2]
[375241210,1753595465977,-475.24,0.00024383,2]
[375241211,1753595465987,-746.26,0.00024383,2]
[375241212,1753595465996,-819.7,0.00024383,2]
[375241213,1753595466006,-1990.43,0.00024383,2]
[375241214,1753595466015,-532.53,0.00024383,2]
[375241215,1753595466025,-151.0,0.00024383,7]
[375241216,1753595466035,-475.65,0.00024383,2]
[375241217,1753595466044,-153.977048,0.00024383,7]
[375241218,1753595466054,-1414.2,0.00024383,2]
[375241219,1753595466063,-151.0,0.00024383,7]
[375241220,1753595466073,-1681.9,0.00024383,2]
[375241221,1753595466081,-151.0,0.00024383,7]
[375241222,1753595466091,-1788.4,0.00024383,2]
[375241223,1753595466100,-670.56,0.00024383,2]
[375241224,1753595466110,-517.79,0.00024383,2]
[375241225,1753595466120,-1567.29,0.00024383,2]
[375241226,1753595466129,-460.0,0.00024383,2]
[375241227,1753595466139,-792.06,0.00024383,2]
[375241228,1753595466148,-622.32,0.00024383,2]
[375241229,1753595466158,-151.0,0.00024383,7]
[375241230,1753595466170,-151.0,0.00024383,7]
[375241231,1753595466180,-598.56,0.00024383,2]
[375241232,1753595466189,-460.0,0.00024383,2]
[375241233,1753595466198,-750.85,0.00024383,2]
[375241234,1753595466208,-1639.17,0.00024383,2]
[375241235,1753595466217,-486.5,0.00024383,2]
[375241236,1753595466227,-504.15,0.00024383,2]
[375241237,1753595466237,-720.09,0.00024383,2]
[375241238,1753595466247,-283.75,0.00024392,2]
[375241239,1753595466256,-800.0,0.00024425,2]
[375241240,1753595466266,-500.0,0.00024443,2]
[375241241,1753595466276,-3935.02372882,0.00024452,11]
[375241242,1753595466285,-334.0,0.00024465,2]
[375241243,1753595466295,-500.0,0.00024467,2]
[375241244,1753595466305,-207.48,0.00024491,2]
[375241245,1753595466314,-600.0,0.000245,2]
[375241246,1753595466323,-500.0,0.00024504,2]
[375241247,1753595466332,-500.99913186,0.00024522,2]
[375241248,1753595466341,-500.0,0.00024526,2]
[375241249,1753595466350,-500.0,0.00024531,2]
[375241250,1753595466359,-155.55,0.00024569,2]
[375241251,1753595466369,-800.0,0.00024607,2]
[375241252,1753595466378,-168.0,0.00024608,2]
[375241253,1753595466387,-151.0,0.00024608,7]
[375241254,1753595466396,-151.0,0.00024608,7]
[375241255,1753595466406,-151.0,0.00024608,7]
[375241256,1753595466415,-151.0,0.00024608,7]
[375241257,1753595466424,-232.0,0.0002462,2]
[375241258,1753595466434,-500.0,0.00024624,2]
[375241259,1753595466443,-151.0,0.00024629,7]
[375241260,1753595466452,-151.929359,0.00024657,7]
[375241261,1753595466462,-645.18081866,0.00024657,2]
[375241262,1753595466471,-2578.14255138,0.00024657,2]
[375241263,1753595466480,-449.93,0.00024657,2]
[375241264,1753595466489,-152.196195,0.00024657,7]
[375241265,1753595466498,-3978.79,0.00024657,2]
[375241266,1753595466507,-637.82,0.00024657,2]
[375241267,1753595466517,-646.88,0.00024657,2]
[375241268,1753595466527,-1725.54,0.00024657,2]
[375241269,1753595466536,-584.25,0.00024657,2]
[375241270,1753595466545,-798.5,0.00024657,2]
[375241271,1753595466554,-151.0,0.00024657,7]
[375241272,1753595466564,-266.417653,0.00024657,7]
[375241273,1753595466573,-151.892603,0.00024657,7]
[375241274,1753595466583,-151.0,0.00024657,7]
[375241275,1753595466592,-460.0,0.00024657,2]
[375241276,1753595466601,-4006.34,0.00024657,2]
[375241277,1753595466610,-151.0,0.00024657,7]
[375241278,1753595466620,-151.0,0.00024657,7]
[375241279,1753595466629,-783.4,0.00024657,2]
[375241280,1753595466638,-151.0,0.00024657,7]
[375241281,1753595466648,-460.0,0.00024657,2]
[375241282,1753595466657,-460.0,0.00024657,2]
[375241283,1753595466668,-151.0,0.00024657,7]
[375241284,1753595466677,-1583.13,0.00024657,2]
[375241285,1753595466686,-300.83196396,0.00024657,2]
[375241286,1753595466695,-1666.04,0.00024657,2]
[375241287,1753595466705,-1405.32,0.00024657,2]
[375241288,1753595466714,-460.0,0.00024657,2]
[375241289,1753595466723,-460.0,0.00024657,2]
[375241290,1753595466733,-584.73,0.00024657,2]
[375241291,1753595466744,-1584.02,0.00024657,2]
[375241292,1753595466753,-1748.75,0.00024657,2]
[375241293,1753595466763,-475.24,0.00024657,2]
[375241294,1753595466772,-746.26,0.00024657,2]
[375241295,1753595466782,-819.7,0.00024657,2]
[375241296,1753595466791,-1990.43,0.00024657,2]
[375241297,1753595466801,-532.53,0.00024657,2]
[375241298,1753595466811,-475.65,0.00024657,2]
[375241299,1753595466826,-1414.2,0.00024657,2]
[375241300,1753595466836,-1681.9,0.00024657,2]
[375241301,1753595466846,-1788.4,0.00024657,2]
[375241302,1753595466855,-670.56,0.00024657,2]
[375241303,1753595466865,-517.79,0.00024657,2]
[375241304,1753595466876,-1567.29,0.00024657,2]
[375241305,1753595466886,-460.0,0.00024657,2]
[375241306,1753595466895,-792.06,0.00024657,2]
[375241307,1753595466907,-622.32,0.00024657,2]
[375241308,1753595466917,-598.56,0.00024657,2]
[375241309,1753595466927,-460.0,0.00024657,2]
[375241310,1753595466936,-750.85,0.00024657,2]
[375241311,1753595466945,-1639.17,0.00024657,2]
[375241312,1753595467017,-486.5,0.00024657,2]
[375241313,1753595467027,-504.15,0.00024657,2]
[375241314,1753595467038,-720.09,0.00024657,2]
[375241315,1753595467047,-168.0,0.00024658,2]
[375241316,1753595467058,-151.0,0.00024658,2]
[375241317,1753595467069,-500.0,0.00024658,2]
[375241318,1753595467081,-151.0,0.00024658,2]
[375241319,1753595467090,-151.0,0.00024658,2]
[375241320,1753595467100,-151.0,0.00024658,2]
[375241321,1753595467110,-151.0,0.00024658,2]
[375241322,1753595467120,-151.0,0.00024658,2]
[375241323,1753595467129,-151.0,0.00024658,2]
[375241324,1753595467139,-151.0,0.00024658,2]
[375241325,1753595467151,-249.59601864,0.00024658,2]
[375241326,1753595467161,-151.0,0.00024658,2]
[375241327,1753595467171,-151.0,0.00024658,2]
[375241328,1753595467181,-198.0,0.00024658,2]
[375241329,1753595467190,-152.6791758,0.00024658,2]
[375241330,1753595467200,-151.0,0.00024658,2]
[375241331,1753595467211,-500.0,0.00024658,2]
[375241332,1753595467220,-151.0,0.00024658,2]
[375241333,1753595467230,-152.35542293,0.00024658,2]
[375241334,1753595467240,-151.0,0.00024658,2]
[375241335,1753595467249,-500.0,0.00024658,2]
[375241336,1753595467259,-276.90944129,0.00024658,2]
[375241337,1753595467269,-240.92602532,0.00024658,2]
[375241338,1753595467278,-151.0,0.00024658,2]
[375241339,1753595467288,-151.0,0.00024658,2]
[375241340,1753595467297,-500.0,0.00024658,2]
[375241341,1753595467306,-151.28003748,0.00024658,2]
[375241342,1753595467316,-151.56985288,0.00024658,2]
[375241343,1753595467325,-3935.02372882,0.00024659,11]
[375241344,1753595467334,-151.0,0.00024659,7]
[375241345,1753595467344,-153.587101,0.00024659,7]
[375241346,1753595467354,-151.0,0.00024659,7]
[375241347,1753595467363,-151.0,0.00024659,7]
[375241348,1753595467373,-800.0,0.00024694,2]
[375241349,1753595467382,-800.0,0.00024709,2]
[375241350,1753595467392,-800.0,0.00024741,2]
[375241351,1753595467402,-500.0,0.0002475,2]
[375241352,1753595467411,-603.48989277,0.0002475,2]
[375241353,1753595467421,-364.83187084,0.00024779,9]
[375241354,1753595467430,-1004.984154,0.000248,2]
[375241355,1753595467440,-500.0,0.00024841,2]
[375241356,1753595467450,-812.93233458,0.00024842,2]
[375241357,1753595467459,-500.0,0.00024863,2]
[375241358,1753595467468,-3935.02372882,0.00024866,12]
[375241359,1753595467479,-334.0,0.00024881,2]
[375241360,1753595467489,-3343.63,0.000249,7]
[375241361,1753595467498,-3835.66201454,0.000249,2]
[375241362,1753595467509,-151.667071,0.000249,7]
[375241363,1753595467519,-268.672107,0.000249,7]
[375241364,1753595467530,-151.0,0.000249,7]
[375241365,1753595467542,-151.0,0.000249,7]
[375241366,1753595467565,-151.0,0.000249,7]
[375241367,1753595467581,-152.97131,0.000249,7]
[375241368,1753595467600,-154.021161,0.000249,7]
[375241369,1753595467619,-151.0,0.000249,7]
[375241370,1753595467637,-151.0,0.000249,7]
[375241371,1753595467656,-151.0,0.000249,7]
[375241372,1753595467674,-151.71875,0.000249,7]
[375241373,1753595467688,-151.0,0.000249,7]
[375241374,1753595467707,-151.0,0.000249,7]
[375241375,1753595467726,-151.0,0.000249,7]
[375241376,1753595467747,-151.0,0.000249,7]
[375241377,1753595467760,-151.0,0.000249,7]
[375241378,1753595467788,-153.915522,0.000249,7]
[375241379,1753595467807,-157.964737,0.000249,7]
[375241380,1753595467826,-151.0,0.000249,7]
[375241381,1753595467839,-151.0,0.000249,7]
[375241382,1753595467854,-502.59145667,0.000249,5]
[375241383,1753595467869,-151.0,0.000249,7]
[375241384,1753595467885,-151.0,0.000249,7]
[375241385,1753595467900,-151.0,0.000249,7]
[375241386,1753595467914,-289.605948,0.000249,7]
[375241387,1753595467929,-481846.737189,0.000249,2]
[375241388,1753595467944,-151.0,0.000249,7]
[375241389,1753595467959,-151.0,0.000249,7]
[375241390,1753595467973,-151.0,0.000249,7]
[375241391,1753595467988,-151.0,0.000249,7]
[375241392,1753595468003,-151.0,0.000249,7]
[375241393,1753595468019,-151.0,0.000249,7]
[375241394,1753595468029,-151.0,0.000249,7]
[375241395,1753595468039,-151.0,0.000249,7]
[375241396,1753595468049,-151.0,0.000249,7]
[375241397,1753595468059,-151.0,0.000249,7]
[375241398,1753595468068,-500.0,0.00024902,2]
[375241399,1753595468078,-500.0,0.00024909,2]
[375241400,1753595468088,-500.0,0.00024917,2]
[375241401,1753595468098,-3587.13,0.00024931,2]
[375241402,1753595468107,-3978.79,0.00024931,2]
[375241403,1753595468117,-637.82,0.00024931,2]
[375241404,1753595468127,-646.88,0.00024931,2]
[375241405,1753595468137,-1725.54,0.00024931,2]
[375241406,1753595468147,-584.25,0.00024931,2]
[375241407,1753595468157,-798.5,0.00024931,2]
[375241408,1753595468167,-460.0,0.00024931,2]
[375241409,1753595468177,-4006.34,0.00024931,2]
[375241410,1753595468188,-783.4,0.00024931,2]
[375241411,1753595468197,-460.0,0.00024931,2]
[375241412,1753595468207,-460.0,0.00024931,2]
[375241413,1753595468217,-1583.13,0.00024931,2]
[375241414,1753595468226,-1666.04,0.00024931,2]
[375241415,1753595468236,-1405.32,0.00024931,2]
[375241416,1753595468246,-396.63,0.00024931,2]
[375241417,1753595468255,-378.02008594,0.00024931,2]
[375241418,1753595468265,-584.73,0.00024931,2]
[375241419,1753595468483,-1584.02,0.00024931,2]
[375241420,1753595468503,-1748.75,0.00024931,2]
[375241421,1753595468514,-475.24,0.00024931,2]
[375241422,1753595468524,-746.26,0.00024931,2]
[375241423,1753595468533,-819.7,0.00024931,2]
[375241424,1753595468543,-1990.43,0.00024931,2]
[375241425,1753595468553,-532.53,0.00024931,2]
[375241426,1753595468563,-475.65,0.00024931,2]
[375241427,1753595468572,-1414.2,0.00024931,2]
[375241428,1753595468582,-1681.9,0.00024931,2]
[375241429,1753595468592,-1788.4,0.00024931,2]
[375241430,1753595468601,-670.56,0.00024931,2]
[375241431,1753595468612,-517.79,0.00024931,2]
[375241432,1753595468621,-1567.29,0.00024931,2]
[375241433,1753595468631,-294.67857244,0.00024931,2]
[375241434,1753595468640,-792.06,0.00024931,2]
[375241435,1753595468650,-622.32,0.00024931,2]
[375241436,1753595468659,-598.56,0.00024931,2]
[375241437,1753595468672,-460.0,0.00024931,2]
[375241438,1753595468681,-750.85,0.00024931,2]
[375241439,1753595468691,-1639.17,0.00024931,2]
[375241440,1753595468701,-486.5,0.00024931,2]
[375241441,1753595468711,-504.15,0.00024931,2]
[375241442,1753595468721,-720.09,0.00024931,2]
[375241443,1753595468730,-151.0,0.00024932,2]
[375241444,1753595468740,-500.0,0.00024932,2]
[375241445,1753595468749,-151.0,0.00024932,2]
[375241446,1753595468759,-151.0,0.00024932,2]
[375241447,1753595468768,-151.0,0.00024932,2]
[375241448,1753595468778,-198.0,0.00024932,2]
[375241449,1753595468787,-201.7199678,0.00024932,2]
[375241450,1753595468796,-151.0,0.00024932,2]
[375241451,1753595468806,-237.62447229,0.00024932,2]
[375241452,1753595468815,-500.0,0.00024932,2]
[375241453,1753595468828,-151.0,0.00024932,2]
[375241454,1753595468837,-500.0,0.00024932,2]
[375241455,1753595468847,-151.0,0.00024932,2]
[375241456,1753595468856,-151.0,0.00024932,2]
[375241457,1753595468865,-500.0,0.00024932,2]
[375241458,1753595468875,-168.0,0.0002494,2]
[375241459,1753595468884,-500.0,0.00024951,2]
[375241460,1753595468894,-800.0,0.00024955,2]
[375241461,1753595468903,-500.0,0.00024969,2]
[375241462,1753595468914,-6157.21419447,0.00025,30]
[375241463,1753595468938,-673.38,0.00023561,2]
[375241464,1753595468948,-570.33480431,0.00025,30]
[375241465,1753595469144,-460.0,0.00019178,2]
[375241466,1753595469153,-460.0,0.00019178,2]
[375241467,1753595469163,-460.0,0.00019452,2]
[375241468,1753595469172,-460.0,0.00019452,2]
[375241469,1753595469182,-460.0,0.00019726,2]
[375241470,1753595469191,-460.0,0.00019726,2]
[375241471,1753595469201,-460.0,0.0002,2]
[375241472,1753595469210,-460.0,0.00020273,2]
[375241473,1753595469220,-460.0,0.00020547,2]
[375241474,1753595469230,-460.0,0.00020821,2]
[375241475,1753595469239,-2171.8588941,0.00022091,2]
[375241476,1753595469248,-362.65615497,0.00022191,2]
[375241477,1753595469391,-460.0,0.00019178,2]
[375241478,1753595469400,-460.0,0.00019178,2]
[375241479,1753595469410,-460.0,0.00019178,2]
[375241480,1753595469421,-460.0,0.00019178,2]
[375241481,1753595469430,-460.0,0.00019452,2]
[375241482,1753595469440,-460.0,0.00019452,2]
[375241483,1753595469450,-460.0,0.00019452,2]
[375241484,1753595469459,-460.0,0.00019726,2]
[375241485,1753595469469,-460.0,0.00019726,2]
[375241486,1753595469478,-460.0,0.00019726,2]
[375241487,1753595469488,-460.0,0.0002,2]
[375241488,1753595469497,-460.0,0.0002,2]
[375241489,1753595469506,-460.0,0.0002,2]
[375241490,1753595469515,-460.0,0.00020273,2]
[375241491,1753595469524,-358.2763748,0.00020547,2]
[375241492,1753595630382,227.820659,0.00017609,2]
[375241493,1753595672978,180.1576769,0.00017699,2]
[375241494,1753595733529,24551.27224162,0.00017269,2]
[375241495,1753595733557,348.72775838,0.00017269,2]
[375241497,1753595921890,306.405578,0.00013699,2]
[375241500,1753596445135,-213.23312887,0.00018129,2]
[375241501,1753596445157,-500.0,0.00018129,2]
[375241502,1753596445182,-277.10282295,0.00018129,2]
[375241503,1753596445205,-1138.66291517,0.00018167,2]
[375241523,1753596632306,-1200.0,0.00018172,2]
[375241525,1753596632316,-255.54080792,0.00018173,2]
[375241527,1753596632326,-4057.06787273,0.00018173,2]
[375241529,1753596632335,-223.85374636,0.000182,2]
[375241531,1753596632345,-300.0,0.00018262,2]
[375241533,1753596632355,-300.0,0.00018262,2]
[375241535,1753596632366,-300.0,0.00018262,2]
[375241537,1753596632375,-1200.0,0.00018266,2]
[375241539,1753596632386,-300.0,0.00018266,2]
[375241541,1753596632395,-50000.0,0.00018267,2]
[375241543,1753596632405,-500.0,0.00018267,2]
[375241545,1753596632415,-171.13598744,0.00018267,2]
[375241547,1753596632425,-500.0,0.00018267,2]
[375241549,1753596632435,-217.99734874,0.00018267,2]
[375241552,1753596632444,-500.0,0.00018267,2]
[375241554,1753596632454,-366.82060993,0.00018267,2]
[375241556,1753596632463,-193.2431822,0.00018267,2]
[375241558,1753596632473,-500.0,0.00018267,2]
[375241560,1753596632482,-407.11964367,0.00018267,2]
[375241562,1753596632492,-500.0,0.00018267,2]
[375241564,1753596632501,-500.0,0.00018267,2]
[375241565,1753596632510,-500.0,0.00018267,2]
[375241568,1753596632520,-500.0,0.00018267,2]
[375241570,1753596632529,-500.0,0.00018267,2]
[375241573,1753596632539,-500.0,0.00018267,2]
[375241574,1753596632548,-517.19840758,0.00018267,2]
[375241577,1753596632559,-500.0,0.00018267,2]
[375241579,1753596632569,-500.0,0.00018267,2]
[375241581,1753596632579,-500.0,0.00018267,2]
[375241583,1753596632589,-500.0,0.00018267,2]
[375241584,1753596632599,-500.0,0.00018267,2]
[375241585,1753596632609,-500.0,0.00018267,2]
[375241586,1753596632619,-500.0,0.00018267,2]
[375241588,1753596632628,-255.1781707,0.00018267,2]
[375241590,1753596632637,-500.0,0.00018267,2]
[375241592,1753596632652,-500.0,0.00018267,2]
[375241594,1753596632662,-500.0,0.00018267,2]
[375241595,1753596632671,-500.0,0.00018267,2]
[375241596,1753596632682,-500.0,0.00018267,2]
[375241597,1753596632691,-500.0,0.00018267,2]
[375241598,1753596632701,-500.0,0.00018267,2]
[375241599,1753596632710,-69205.66800682,0.00018268,2]
[375241600,1753596632728,-52574.40165992,0.00018268,2]
[375241601,1753596632744,-5031.56638052,0.00018268,2]
[375241602,1753596632755,-255.57243791,0.00018268,2]
[375241604,1753596632767,-265.68248041,0.00018268,2]
[375241606,1753596632779,-37279.01489546,0.00018268,2]
[375241638,1753596638368,-205388.09413896,0.00018268,2]
[375241639,1753596638378,-500.0,0.00018273,2]
[375241640,1753596638387,-500.0,0.00018273,2]
[375241641,1753596638396,-500.59689588,0.00018273,2]
[375241643,1753596638406,-542.55430628,0.00018273,2]
[375241644,1753596638415,-500.0,0.00018273,2]
[375241645,1753596638426,-500.0,0.00018273,2]
[375241646,1753596638435,-500.0,0.00018273,2]
[375241647,1753596638444,-500.0,0.00018273,2]
[375241648,1753596638454,-502.28091123,0.00018273,2]
[375241649,1753596638463,-500.0,0.00018273,2]
[375241650,1753596638473,-213.86159497,0.00018273,2]
[375241651,1753596638483,-500.0,0.00018273,2]
[375241652,1753596638492,-370.9975937,0.00018273,2]
[375241653,1753596638502,-501.01943038,0.00018273,2]
[375241654,1753596638512,-500.0,0.00018273,2]
[375241655,1753596638521,-500.0,0.00018273,2]
[375241656,1753596638531,-500.0,0.00018273,2]
[375241657,1753596638540,-500.0,0.00018547,2]
[375241658,1753596638549,-255.54080788,0.00018605,2]
[375241659,1753596638560,-228.7954114,0.00018821,2]
[375241660,1753596638569,-501.77041333,0.00018821,2]
[375241661,1753596638578,-628.31279156,0.00018821,2]
[375241662,1753596638588,-1000.0,0.00018821,2]
[375241663,1753596638598,-500.0,0.00018821,2]
[375241664,1753596638608,-1000.0,0.00018821,2]
[375241665,1753596638617,-1000.0,0.00018821,2]
[375241666,1753596638627,-361.47258721,0.00018821,2]
[375241667,1753596638636,-330.0,0.0001886,2]
[375241668,1753596638649,-301.0004039,0.000189,2]
[375241669,1753596638659,-306.5717614,0.00019,2]
[375241670,1753596638668,-153.0,0.00019,2]
[375241671,1753596638678,-158.2910449,0.00019,2]
[375241672,1753596638687,-153.0,0.00019,2]
[375241673,1753596638697,-153.0,0.00019,2]
[375241674,1753596638707,-402.0,0.00019013,2]
[375241675,1753596638717,-255.54080788,0.00019037,2]
[375241676,1753596638726,-150.0,0.00019141,2]
[375241677,1753596638735,-302.04489196,0.00019173,2]
[375241678,1753596638744,-500.0,0.00019173,2]
[375241679,1753596638754,-500.0,0.00019173,2]
[375241680,1753596638763,-500.0,0.00019173,2]
[375241681,1753596638772,-500.0,0.00019173,2]
[375241682,1753596638781,-500.0,0.00019173,2]
[375241683,1753596638791,-363.5107278,0.00019173,2]
[375241684,1753596638800,-500.04778966,0.00019173,2]
[375241685,1753596638809,-500.0,0.00019173,2]
[375241686,1753596638819,-176.19862204,0.00019178,2]
[375241687,1753596638828,-460.0,0.00019178,2]
[375241688,1753596638838,-460.0,0.00019178,2]
[375241689,1753596638847,-460.0,0.00019178,2]
[375241690,1753596638857,-460.0,0.00019178,2]
[375241691,1753596638867,-460.0,0.00019178,2]
[375241692,1753596638876,-461.56076524,0.00019178,2]
[375241693,1753596638886,-460.0,0.00019178,2]
[375241694,1753596638895,-1130.4,0.00019178,2]
[375241695,1753596638904,-1130.4,0.00019178,2]
[375241696,1753596638914,-1130.4,0.00019178,2]
[375241697,1753596638924,-1130.4,0.00019178,2]
[375241698,1753596638933,-1130.4,0.00019178,2]
[375241699,1753596638943,-1130.4,0.00019178,2]
[375241700,1753596638952,-1130.4,0.00019178,2]
[375241701,1753596638962,-1130.4,0.00019178,2]
[375241702,1753596638973,-1130.4,0.00019178,2]
[375241703,1753596638982,-1130.4,0.00019178,2]
[375241704,1753596638992,-1130.4,0.00019178,2]
[375241705,1753596639001,-1130.4,0.00019178,2]
[375241706,1753596639011,-1130.4,0.00019178,2]
[375241707,1753596639021,-1130.4,0.00019178,2]
[375241708,1753596639030,-1130.4,0.00019178,2]
[375241709,1753596639040,-1130.4,0.00019178,2]
[375241710,1753596639050,-1130.4,0.00019178,2]
[375241711,1753596639059,-461.55681134,0.00019178,2]